fUSD/lending_fUSD_20250120
["ID","MTS","AMOUNT","RATE_DAILY","PERIOD"]
[349640731,1737345046285,-500.0,0.00021192,2]
[349640732,1737345046295,-500.0,0.00021192,2]
[349640733,1737345046305,-808.42666032,0.00021192,2]
[349640734,1737345046317,-170.84333968,0.00021192,2]
[349640735,1737345046327,-253.12522605,0.00021192,2]
[349640736,1737345046336,-500.0,0.00021192,2]
[349640737,1737345046346,-328.44511247,0.00021192,2]
[349640738,1737345046355,-603.94133524,0.00021192,2]
[349640739,1737345046365,-500.0,0.00021192,2]
[349640740,1737345046375,-500.0,0.00021192,2]
[349640741,1737345046384,-500.0,0.00021192,2]
[349640742,1737345046394,-500.0,0.00021192,2]
[349640743,1737345046403,-498.04748462,0.00021192,2]
[349640744,1737345046412,-500.0,0.00021192,2]
[349640745,1737345046422,-500.0,0.00021192,2]
[349640746,1737345046431,-500.0,0.00021192,2]
[349640747,1737345046440,-500.0,0.00021192,2]
[349640748,1737345046450,-500.0,0.00021192,2]
[349640749,1737345046462,-629.56,0.00021192,2]
[349640750,1737345046471,-502.6,0.00021192,2]
[349640751,1737345046481,-961.6,0.00021192,2]
[349640752,1737345046490,-1742.74,0.00021192,2]
[349640753,1737345046499,-500.0,0.00021192,2]
[349640754,1737345046508,-638.64,0.00021192,2]
[349640755,1737345046517,-500.0,0.00021192,2]
[349640756,1737345046526,-579.17,0.00021192,2]
[349640757,1737345046535,-500.0,0.00021192,2]
[349640758,1737345046544,-1594.34,0.00021192,2]
[349640759,1737345046553,-773.19,0.00021192,2]
[349640760,1737345046563,-500.0,0.00021192,2]
[349640761,1737345046572,-1359.83,0.00021192,2]
[349640762,1737345046581,-500.0,0.00021192,2]
[349640763,1737345046591,-1492.33,0.00021192,2]
[349640764,1737345046600,-1126.63,0.00021192,2]
[349640765,1737345046609,-1058.72,0.00021192,2]
[349640766,1737345046619,-500.0,0.00021192,2]
[349640767,1737345046628,-500.0,0.00021192,2]
[349640768,1737345046637,-791.14,0.00021192,2]
[349640769,1737345046646,-500.0,0.00021192,2]
[349640770,1737345046655,-500.0,0.00021192,2]
[349640771,1737345046664,-689.16,0.00021192,2]
[349640772,1737345046674,-500.0,0.00021192,2]
[349640773,1737345046683,-500.0,0.00021192,2]
[349640774,1737345046693,-500.0,0.00021192,2]
[349640775,1737345046702,-500.0,0.00021192,2]
[349640776,1737345046713,-500.0,0.00021192,2]
[349640777,1737345046722,-805.01,0.00021192,2]
[349640778,1737345046732,-500.0,0.00021192,2]
[349640779,1737345046741,-517.5,0.00021192,2]
[349640780,1737345046751,-500.0,0.00021192,2]
[349640781,1737345046761,-500.0,0.00021192,2]
[349640782,1737345046770,-677.15,0.00021192,2]
[349640783,1737345046779,-500.0,0.00021192,2]
[349640784,1737345046788,-763.84,0.00021192,2]
[349640785,1737345046798,-500.0,0.00021192,2]
[349640786,1737345046807,-500.0,0.00021192,2]
[349640787,1737345046816,-586.19,0.00021192,2]
[349640788,1737345046826,-812.7,0.00021192,2]
[349640789,1737345046835,-500.0,0.00021192,2]
[349640790,1737345046845,-919.52,0.00021192,2]
[349640791,1737345046854,-500.0,0.00021192,2]
[349640792,1737345046864,-1721.18,0.00021192,2]
[349640793,1737345046873,-500.0,0.00021192,2]
[349640794,1737345046883,-500.0,0.00021192,2]
[349640795,1737345046892,-500.0,0.00021192,2]
[349640796,1737345046901,-500.0,0.00021192,2]
[349640797,1737345046911,-500.0,0.00021192,2]
[349640798,1737345046920,-500.0,0.00021192,2]
[349640799,1737345046929,-1761.88,0.00021192,2]
[349640800,1737345046940,-500.0,0.00021192,2]
[349640801,1737345046949,-2165.96,0.00021192,2]
[349640802,1737345046960,-668.8,0.00021192,2]
[349640803,1737345046969,-2423.75,0.00021192,2]
[349640804,1737345046979,-500.0,0.00021192,2]
[349640805,1737345046988,-500.0,0.00021192,2]
[349640806,1737345046997,-500.0,0.00021192,2]
[349640807,1737345047006,-500.0,0.00021192,2]
[349640808,1737345047015,-500.0,0.00021192,2]
[349640809,1737345047025,-500.0,0.00021192,2]
[349640810,1737345047034,-550.52,0.00021192,2]
[349640811,1737345047044,-1079.35,0.00021192,2]
[349640812,1737345047053,-1013.83,0.00021192,2]
[349640813,1737345047062,-1642.73,0.00021192,2]
[349640814,1737345047072,-500.0,0.00021192,2]
[349640815,1737345047082,-864.23,0.00021192,2]
[349640816,1737345047095,-500.0,0.00021192,2]
[349640817,1737345047104,-749.03,0.00021192,2]
[349640818,1737345047113,-500.0,0.00021192,2]
[349640819,1737345047271,-1684.73,0.00021192,2]
[349640820,1737345047323,-1398.38,0.00021192,2]
[349640821,1737345047334,-1325.66,0.00021192,2]
[349640822,1737345047353,-1457.14,0.00021192,2]
[349640823,1737345047372,-500.0,0.00021192,2]
[349640824,1737345047385,-1644.85,0.00021192,2]
[349640825,1737345047397,-990.99,0.00021192,2]
[349640826,1737345047408,-1772.07,0.00021192,2]
[349640827,1737345047418,-500.0,0.00021192,2]
[349640828,1737345047427,-977.02,0.00021192,2]
[349640829,1737345047437,-500.0,0.00021192,2]
[349640830,1737345047447,-3646.95,0.00021192,2]
[349640831,1737345047459,-1452.09,0.00021192,2]
[349640832,1737345047468,-810.53,0.00021192,2]
[349640833,1737345047478,-500.0,0.00021192,2]
[349640834,1737345047487,-2090.66,0.00021192,2]
[349640835,1737345047497,-500.0,0.00021192,2]
[349640836,1737345047508,-500.0,0.00021192,2]
[349640837,1737345047518,-1303.83,0.00021192,2]
[349640838,1737345047528,-500.0,0.00021192,2]
[349640839,1737345047538,-1101.24,0.00021192,2]
[349640840,1737345047547,-723.48,0.00021192,2]
[349640841,1737345047557,-500.0,0.00021192,2]
[349640842,1737345047568,-500.0,0.00021192,2]
[349640843,1737345047577,-2517.51,0.00021192,2]
[349640844,1737345047588,-1000.0,0.00021192,2]
[349640845,1737345047597,-1440.34,0.00021192,2]
[349640846,1737345047607,-521.22,0.00021192,2]
[349640847,1737345047616,-500.0,0.00021192,2]
[349640848,1737345047626,-1318.37,0.00021192,2]
[349640849,1737345047635,-1062.03,0.00021192,2]
[349640850,1737345047648,-5684.69,0.00021192,2]
[349640851,1737345047662,-1499.89,0.00021192,2]
[349640852,1737345047675,-1213.77,0.00021192,2]
[349640853,1737345047687,-681.13,0.00021192,2]
[349640854,1737345047696,-2315.29,0.00021192,2]
[349640855,1737345047709,-500.0,0.00021192,2]
[349640856,1737345047719,-500.0,0.00021192,2]
[349640857,1737345047728,-1182.39,0.00021192,2]
[349640858,1737345047738,-500.0,0.00021192,2]
[349640859,1737345047747,-518.57,0.00021192,2]
[349640860,1737345047757,-500.0,0.00021192,2]
[349640861,1737345047766,-529.58,0.00021192,2]
[349640862,1737345047776,-500.0,0.00021192,2]
[349640863,1737345047785,-868.77,0.00021192,2]
[349640864,1737345047795,-500.0,0.00021192,2]
[349640865,1737345047805,-1654.35,0.00021192,2]
[349640866,1737345047814,-1627.6,0.00021192,2]
[349640867,1737345047823,-760.63,0.00021192,2]
[349640868,1737345047832,-224.16318876,0.00021192,2]
[349640869,1737345047842,-1680.02,0.00021192,2]
[349640870,1737345047851,-552.34,0.00021192,2]
[349640871,1737345047861,-3111.95,0.00021192,2]
[349640872,1737345047870,-7487.6,0.00021192,2]
[349640873,1737345047880,-671.51,0.00021192,2]
[349640874,1737345047889,-213.33608493,0.00021192,2]
[349640875,1737345047899,-1245.86,0.00021192,2]
[349640876,1737345047908,-500.0,0.00021192,2]
[349640877,1737345047918,-849.08,0.00021192,2]
[349640878,1737345047927,-503.96603832,0.00021192,2]
[349640879,1737345047937,-500.0,0.00021192,2]
[349640880,1737345047946,-1684.3,0.00021192,2]
[349640881,1737345047959,-2023.42,0.00021192,2]
[349640882,1737345047968,-4789.34,0.00021192,2]
[349640883,1737345047978,-500.0,0.00021192,2]
[349640884,1737345047988,-500.0,0.00021192,2]
[349640885,1737345047997,-640.37,0.00021192,2]
[349640886,1737345048007,-684.13,0.00021192,2]
[349640887,1737345048017,-2216.64,0.00021192,2]
[349640888,1737345048027,-648.78,0.00021192,2]
[349640889,1737345048036,-2791.31,0.00021192,2]
[349640890,1737345048046,-804.9,0.00021192,2]
[349640891,1737345048056,-3898.54,0.00021192,2]
[349640892,1737345048065,-500.0,0.00021192,2]
[349640893,1737345048075,-1321.08,0.00021192,2]
[349640894,1737345048086,-1094.88,0.00021193,2]
[349640895,1737345048099,-500.0,0.00021193,2]
[349640896,1737345048109,-1262.16,0.00021193,2]
[349640897,1737345048118,-833.36,0.00021193,2]
[349640898,1737345048128,-1061.03,0.00021193,2]
[349640899,1737345048138,-1010.52,0.00021193,2]
[349640900,1737345048148,-605.48,0.00021193,2]
[349640901,1737345048158,-500.0,0.00021193,2]
[349640902,1737345048169,-1075.01,0.00021193,2]
[349640903,1737345048179,-500.0,0.00021193,2]
[349640904,1737345048189,-768.01,0.00021193,2]
[349640905,1737345048199,-500.0,0.00021193,2]
[349640906,1737345048212,-1000.0,0.000212,5]
[349640907,1737345048222,-500.0,0.00021356,2]
[349640908,1737345048231,-662.34,0.00021465,2]
[349640909,1737345048241,-651.16,0.00021465,2]
[349640910,1737345048251,-500.0,0.00021465,2]
[349640911,1737345048260,-500.0,0.00021465,2]
[349640912,1737345048270,-500.0,0.00021465,2]
[349640913,1737345048280,-1196.03,0.00021465,2]
[349640914,1737345048291,-500.0,0.00021465,2]
[349640915,1737345048301,-500.0,0.00021465,2]
[349640916,1737345048311,-1154.47,0.00021465,2]
[349640917,1737345048322,-520.3903085,0.00021465,2]
[349640918,1737345048332,-574.15,0.00021465,2]
[349640919,1737345048342,-551.75,0.00021465,2]
[349640920,1737345048352,-500.0,0.00021465,2]
[349640921,1737345048362,-1007.31,0.00021465,2]
[349640922,1737345048372,-1466.18,0.00021465,2]
[349640923,1737345048383,-1724.44,0.00021465,2]
[349640924,1737345048392,-764.02,0.00021465,2]
[349640925,1737345048403,-1367.61,0.00021465,2]
[349640926,1737345048413,-500.0,0.00021465,2]
[349640927,1737345048423,-817.57,0.00021465,2]
[349640928,1737345048432,-1874.38,0.00021465,2]
[349640929,1737345048442,-1140.14,0.00021465,2]
[349640930,1737345048452,-500.0,0.00021465,2]
[349640931,1737345048464,-500.0,0.00021465,2]
[349640932,1737345048483,-1508.19,0.00021465,2]
[349640933,1737345048498,-500.0,0.00021465,2]
[349640934,1737345048509,-500.0,0.00021465,2]
[349640935,1737345048519,-500.0,0.00021465,2]
[349640936,1737345048530,-845.20664993,0.00021465,2]
[349640937,1737345048548,-286.61335007,0.00021465,2]
[349640938,1737345048558,-500.0,0.00021465,2]
[349640939,1737345048569,-500.0,0.00021465,2]
[349640940,1737345048579,-2068.76,0.00021465,2]
[349640941,1737345048589,-500.0,0.00021465,2]
[349640942,1737345048599,-193.5529941,0.00021465,2]
[349640943,1737345048631,-604.61362801,0.00021465,2]
[349640944,1737345048643,-491.8000024,0.00021465,2]
[349640945,1737345048660,-272.83337549,0.00021465,2]
[349640946,1737345048670,-903.66,0.00021465,2]
[349640947,1737345048681,-500.0,0.00021465,2]
[349640948,1737345048691,-500.0,0.00021465,2]
[349640949,1737345048702,-430.11825011,0.00021465,2]
[349640950,1737345048717,-292.87174989,0.00021465,2]
[349640951,1737345048727,-257.29923619,0.00021465,2]
[349640952,1737345048737,-916.04766541,0.00021465,2]
[349640953,1737345048750,-199.32233459,0.00021465,2]
[349640954,1737345048761,-805.62,0.00021465,2]
[349640955,1737345048771,-500.0,0.00021465,2]
[349640956,1737345048781,-1805.12,0.00021465,2]
[349640957,1737345048791,-968.753279,0.00021465,2]
[349640958,1737345048801,-2694.7,0.00021465,2]
[349640959,1737345048811,-616.16163699,0.00021465,2]
[349640961,1737345936131,-668.88,0.00018546,2]
[349640962,1737345936388,-767.1098739,0.00020339,2]
[349640963,1737345937539,152.3,0.00010137,2]
[349640965,1737346025094,-179.1,0.00016219,2]
[349640966,1737346025115,-152.3,0.00017599,2]
[349640967,1737346025136,-500.0,0.00019164,2]
[349640968,1737346025157,-593.52545182,0.00020339,2]
[349640975,1737346232070,-358.98,0.00020275,2]
[349640976,1737346232088,-166.51,0.00020314,2]
[349640977,1737346232103,-170.05985407,0.00020339,2]
[349640978,1737346232121,-738.06482021,0.00020339,2]
[349640979,1737346232136,-250.0,0.00020377,2]
[349640980,1737346232150,-204.47446896,0.00020407,2]
[349640981,1737346232168,-228.25553104,0.00020407,2]
[349640982,1737346232183,-169.6722623,0.00020518,2]
[349640983,1737346232229,-104.2677377,0.00020518,2]
[349640984,1737346232243,-250.0,0.00020584,2]
[349640985,1737346232259,-1663.0,0.00020618,2]
[349640986,1737346232275,-1000.0,0.00020621,2]
[349640987,1737346232290,-165.68,0.00020636,2]
[349640988,1737346232304,-1278.6783824,0.0002079,2]
[349640989,1737346232319,-1278.6783824,0.00020802,2]
[349640990,1737346232335,-1278.6783824,0.00020807,2]
[349640991,1737346232350,-668.88,0.0002081,2]
[349640992,1737346232365,-853.85889746,0.00020812,2]
[349640993,1737346232380,-853.85889746,0.00020813,2]
[349640994,1737346232395,-695.05,0.00020823,30]
[349640995,1737346232410,-853.85889746,0.00020829,2]
[349640996,1737346232426,-853.85889746,0.00020852,2]
[349640997,1737346232442,-1278.6783824,0.00020893,2]
[349640998,1737346232457,-150.0,0.000209,2]
[349640999,1737346232473,-151.16,0.000209,2]
[349641000,1737346232489,-302.33,0.000209,2]
[349641001,1737346232507,-1278.6783824,0.00020918,2]
[349641002,1737346232523,-853.85889746,0.00020943,2]
[349641003,1737346232538,-157.43907928,0.0002109,2]
[349641004,1737346232553,-300.0,0.0002109,2]
[349641005,1737346232567,-11605.0,0.0002109,2]
[349641006,1737346232583,-175.61,0.00021133,2]
[349641007,1737346232598,-2388.63,0.00021189,2]
[349641008,1737346232613,-4096.08,0.00021189,2]
[349641009,1737346232629,-507.11,0.00021189,2]
[349641010,1737346232643,-2085.16,0.00021189,2]
[349641013,1737346232658,-349.10839409,0.00021189,2]
[349641016,1737346232677,-500.0,0.00021189,2]
[349641017,1737346232695,-542.8263274,0.00021189,2]
[349641018,1737346232713,-4560.92527851,0.00021189,2]
[349641019,1737346232729,-693.4,0.00021189,2]
[349641020,1737346232743,-506.22,0.00021189,2]
[349641021,1737346232758,-508.69629106,0.00021189,2]
[349641022,1737346232772,-506.66440515,0.00021189,2]
[349641023,1737346232786,-500.0,0.00021189,2]
[349641024,1737346232801,-2154.9,0.00021189,2]
[349641025,1737346232815,-1024.95,0.00021189,2]
[349641026,1737346232830,-2162.13,0.00021189,2]
[349641027,1737346232845,-500.0,0.00021189,2]
[349641028,1737346232860,-500.0,0.00021189,2]
[349641029,1737346232876,-1155.9,0.00021189,2]
[349641030,1737346232892,-500.0,0.00021189,2]
[349641031,1737346232903,-1425.184,0.0002119,2]
[349641032,1737346232913,-181.92610789,0.0002119,2]
[349641033,1737346232923,-500.0,0.0002119,2]
[349641034,1737346232933,-500.0,0.0002119,2]
[349641035,1737346232946,-500.0,0.0002119,2]
[349641036,1737346232956,-500.0,0.0002119,2]
[349641037,1737346232966,-259.81609995,0.0002119,2]
[349641038,1737346233323,-500.0,0.0002119,2]
[349641039,1737346233365,-500.0,0.0002119,2]
[349641040,1737346233377,-500.0,0.0002119,2]
[349641041,1737346233387,-514.89304326,0.0002119,2]
[349641042,1737346233398,-500.0,0.0002119,2]
[349641043,1737346233408,-500.0,0.0002119,2]
[349641044,1737346233419,-500.0,0.0002119,2]
[349641045,1737346233431,-500.0,0.0002119,2]
[349641046,1737346233441,-757.34,0.0002119,2]
[349641047,1737346233453,-607.15,0.0002119,2]
[349641048,1737346233464,-500.0,0.0002119,2]
[349641049,1737346233474,-500.0,0.0002119,2]
[349641050,1737346233485,-500.0,0.0002119,2]
[349641051,1737346233495,-500.0,0.0002119,2]
[349641052,1737346233507,-783.38,0.0002119,2]
[349641053,1737346233519,-161.41779653,0.0002119,2]
[349641054,1737346233530,-1035.44,0.0002119,2]
[349641055,1737346233541,-1096.36,0.0002119,2]
[349641056,1737346233551,-500.0,0.0002119,2]
[349641057,1737346233562,-500.0,0.0002119,2]
[349641058,1737346233572,-500.0,0.0002119,2]
[349641059,1737346233583,-200.0,0.0002119,2]
[349641060,1737346233593,-500.0,0.0002119,2]
[349641061,1737346233604,-500.0,0.0002119,2]
[349641062,1737346233614,-500.0,0.0002119,2]
[349641063,1737346233624,-1079.1,0.0002119,2]
[349641064,1737346233634,-500.0,0.0002119,2]
[349641065,1737346233645,-771.47,0.0002119,2]
[349641066,1737346233656,-500.0,0.0002119,2]
[349641067,1737346233666,-500.0,0.0002119,2]
[349641068,1737346233676,-754.44,0.0002119,2]
[349641069,1737346233685,-732.02,0.0002119,2]
[349641070,1737346233696,-374.83163673,0.0002119,2]
[349641071,1737346233709,-526.3,0.0002119,2]
[349641072,1737346233723,-561.77,0.0002119,2]
[349641073,1737346233734,-500.0,0.0002119,2]
[349641074,1737346233744,-552.55121327,0.0002119,2]
[349641075,1737346233754,-500.0,0.0002119,2]
[349641076,1737346233763,-1670.3,0.0002119,2]
[349641077,1737346233774,-588.53,0.0002119,2]
[349641078,1737346233783,-2552.313907,0.0002119,2]
[349641079,1737346233793,-500.0,0.0002119,2]
[349641080,1737346233804,-500.0,0.0002119,2]
[349641081,1737346233814,-154.296374,0.0002119,2]
[349641082,1737346233824,-500.0,0.0002119,2]
[349641083,1737346233834,-162.29852,0.0002119,2]
[349641084,1737346233844,-1472.49,0.0002119,2]
[349641085,1737346233853,-500.0,0.0002119,2]
[349641086,1737346233863,-500.0,0.0002119,2]
[349641087,1737346233872,-923.37,0.0002119,2]
[349641088,1737346233882,-500.0,0.0002119,2]
[349641089,1737346233892,-692.41,0.0002119,2]
[349641090,1737346233902,-1344.0,0.0002119,2]
[349641091,1737346233911,-198.63105773,0.0002119,2]
[349641092,1737346233920,-916.921946,0.0002119,2]
[349641093,1737346233931,-661.77,0.0002119,2]
[349641094,1737346233940,-500.0,0.0002119,2]
[349641095,1737346233952,-500.0,0.0002119,2]
[349641096,1737346233962,-500.0,0.0002119,2]
[349641097,1737346233972,-1580.73,0.0002119,2]
[349641098,1737346233981,-500.0,0.0002119,2]
[349641099,1737346233991,-507.7771737,0.0002119,2]
[349641100,1737346234001,-500.0,0.0002119,2]
[349641101,1737346234011,-73.75514942,0.0002119,2]
[349641102,1737346234046,-426.24485058,0.0002119,2]
[349641103,1737346234055,-575.27,0.0002119,2]
[349641104,1737346234065,-500.0,0.0002119,2]
[349641105,1737346234074,-500.0,0.0002119,2]
[349641106,1737346234084,-500.0,0.0002119,2]
[349641107,1737346234093,-343.66885143,0.0002119,2]
[349641108,1737346234103,-240.07321274,0.0002119,2]
[349641109,1737346234112,-500.0,0.0002119,2]
[349641110,1737346234121,-1274.48,0.0002119,2]
[349641111,1737346234131,-500.0,0.0002119,2]
[349641112,1737346234140,-500.0,0.0002119,2]
[349641113,1737346234150,-527.58,0.0002119,2]
[349641114,1737346234159,-500.0,0.0002119,2]
[349641115,1737346234168,-500.0,0.0002119,2]
[349641116,1737346234178,-500.0,0.0002119,2]
[349641117,1737346234187,-770.27,0.0002119,2]
[349641118,1737346234198,-500.0,0.0002119,2]
[349641119,1737346234207,-512.06350806,0.0002119,2]
[349641120,1737346234216,-500.0,0.0002119,2]
[349641121,1737346234225,-197.34957719,0.0002119,2]
[349641122,1737346234238,-1541.66042281,0.0002119,2]
[349641123,1737346234248,-510.97290497,0.0002119,2]
[349641124,1737346234258,-1574.28,0.0002119,2]
[349641125,1737346234268,-500.0,0.0002119,2]
[349641126,1737346234279,-500.0,0.0002119,2]
[349641127,1737346234288,-500.0,0.0002119,2]
[349641128,1737346234298,-715.61,0.0002119,2]
[349641129,1737346234307,-500.0,0.0002119,2]
[349641130,1737346234317,-500.0,0.0002119,2]
[349641131,1737346234327,-500.0,0.0002119,2]
[349641132,1737346234336,-508.54556919,0.0002119,2]
[349641133,1737346234346,-500.0,0.0002119,2]
[349641134,1737346234355,-587.13,0.0002119,2]
[349641135,1737346234366,-502.32683428,0.0002119,2]
[349641136,1737346234376,-500.0,0.0002119,2]
[349641137,1737346234386,-1508.69,0.0002119,2]
[349641138,1737346234396,-500.0,0.0002119,2]
[349641139,1737346234406,-500.0,0.0002119,2]
[349641140,1737346234416,-500.0,0.0002119,2]
[349641141,1737346234429,-504.0806804,0.0002119,2]
[349641142,1737346234439,-500.0,0.0002119,2]
[349641143,1737346234451,-500.0,0.0002119,2]
[349641144,1737346234462,-1403.34,0.0002119,2]
[349641145,1737346234472,-1360.95,0.0002119,2]
[349641146,1737346234482,-731.78,0.0002119,2]
[349641147,1737346234492,-500.0,0.0002119,2]
[349641148,1737346234504,-506.63830488,0.0002119,2]
[349641149,1737346234515,-500.0,0.0002119,2]
[349641150,1737346234524,-432.26606688,0.0002119,2]
[349641151,1737346234534,-511.91916865,0.0002119,2]
[349641152,1737346234544,-1417.26,0.0002119,2]
[349641153,1737346234555,-500.0,0.0002119,2]
[349641154,1737346234565,-500.0,0.0002119,2]
[349641155,1737346234575,-1058.34,0.0002119,2]
[349641156,1737346234584,-500.0,0.0002119,2]
[349641157,1737346234594,-500.0,0.0002119,2]
[349641158,1737346234603,-500.0,0.0002119,2]
[349641159,1737346234613,-513.24861768,0.0002119,2]
[349641160,1737346234623,-346.98882066,0.0002119,2]
[349641161,1737346234633,-503.61198811,0.0002119,2]
[349641162,1737346234642,-500.0,0.0002119,2]
[349641163,1737346234652,-970.53,0.0002119,2]
[349641164,1737346234662,-1896.36,0.0002119,2]
[349641165,1737346234672,-505.2532676,0.0002119,2]
[349641166,1737346234682,-500.0,0.0002119,2]
[349641167,1737346234691,-500.0,0.0002119,2]
[349641168,1737346234702,-960.73,0.0002119,2]
[349641169,1737346234713,-500.0,0.0002119,2]
[349641170,1737346234722,-500.0,0.0002119,2]
[349641171,1737346234730,-1434.74,0.0002119,2]
[349641172,1737346234741,-500.0,0.0002119,2]
[349641173,1737346234751,-500.0,0.0002119,2]
[349641174,1737346234760,-500.0,0.0002119,2]
[349641175,1737346234770,-828.36,0.0002119,2]
[349641176,1737346234780,-500.0,0.0002119,2]
[349641177,1737346234789,-504.34479003,0.0002119,2]
[349641178,1737346234799,-500.0,0.0002119,2]
[349641179,1737346234809,-3408.81,0.0002119,2]
[349641180,1737346234818,-511.65941259,0.0002119,2]
[349641181,1737346234827,-500.0,0.0002119,2]
[349641182,1737346234837,-500.0,0.0002119,2]
[349641183,1737346234846,-2853.2,0.0002119,2]
[349641184,1737346234856,-500.0,0.0002119,2]
[349641185,1737346234866,-500.0,0.0002119,2]
[349641186,1737346234876,-500.0,0.0002119,2]
[349641187,1737346234885,-500.0,0.0002119,2]
[349641188,1737346234894,-504.70913002,0.0002119,2]
[349641189,1737346234904,-514.21137877,0.0002119,2]
[349641190,1737346234914,-409.88583569,0.0002119,2]
[349641191,1737346234922,-1598.45,0.0002119,2]
[349641192,1737346234932,-119.11680678,0.0002119,2]
[349641193,1737346234949,-336.50062,0.0002119,2]
[349641194,1737346234961,-566.81257322,0.0002119,2]
[349641195,1737346234971,-500.71457629,0.0002119,2]
[349641196,1737346234980,-500.0,0.0002119,2]
[349641197,1737346234991,-500.0,0.0002119,2]
[349641198,1737346235000,-500.0,0.0002119,2]
[349641199,1737346235010,-500.0,0.0002119,2]
[349641200,1737346235019,-39.29695281,0.0002119,2]
[349641201,1737346235032,-460.70304719,0.0002119,2]
[349641202,1737346235041,-118.66048475,0.0002119,2]
[349641204,1737346238192,-500.0,0.00021189,2]
[349641205,1737346238205,-579.46951525,0.0002119,2]
[349641206,1737346238214,-500.0,0.0002119,2]
[349641207,1737346238223,-500.0,0.0002119,2]
[349641208,1737346238233,-3721.53,0.0002119,2]
[349641209,1737346238243,-500.0,0.0002119,2]
[349641210,1737346238252,-500.0,0.0002119,2]
[349641211,1737346238262,-506.40712716,0.0002119,2]
[349641212,1737346238272,-2384.23,0.0002119,2]
[349641213,1737346238281,-1131.43,0.0002119,2]
[349641214,1737346238291,-154.79936079,0.0002119,2]
[349641215,1737346238307,-345.20063921,0.0002119,2]
[349641216,1737346238317,-355.1682021,0.0002119,2]
[349641217,1737346238329,-152.73545979,0.0002119,2]
[349641218,1737346238339,-500.0,0.0002119,2]
[349641219,1737346238348,-3492.08,0.0002119,2]
[349641220,1737346238358,-500.0,0.0002119,2]
[349641221,1737346238367,-503.18119833,0.0002119,2]
[349641222,1737346238377,-2472.00334188,0.0002119,2]
[349641223,1737346238397,-121.94665812,0.0002119,2]
[349641224,1737346238406,-500.0,0.0002119,2]
[349641225,1737346238416,-500.0,0.0002119,2]
[349641226,1737346238429,-500.0,0.0002119,2]
[349641227,1737346238439,-500.0,0.0002119,2]
[349641228,1737346238450,-500.0,0.0002119,2]
[349641229,1737346238460,-500.0,0.0002119,2]
[349641230,1737346238469,-3397.63,0.0002119,2]
[349641231,1737346238478,-1425.06678168,0.0002119,2]
[349641232,1737346238491,-85.20321832,0.0002119,2]
[349641233,1737346238500,-500.0,0.0002119,2]
[349641234,1737346238510,-500.0,0.0002119,2]
[349641236,1737346238519,-500.0,0.0002119,2]
[349641237,1737346238533,-6845.95,0.0002119,2]
[349641238,1737346238542,-500.0,0.0002119,2]
[349641239,1737346238556,-1112.38,0.0002119,2]
[349641240,1737346238565,-500.0,0.0002119,2]
[349641241,1737346238574,-500.0,0.0002119,2]
[349641242,1737346238584,-500.0,0.0002119,2]
[349641243,1737346238593,-508.21,0.0002119,2]
[349641244,1737346238603,-505.78094824,0.0002119,2]